Cogmind - Beta 12 @@@ ROGUE MODE // 2023.09.07 @ 20:57:39 Player: Eddbot Result: Destroyed by as-94954 with Assembled Heavy Rifle Performance ------------- Evolutions (0) 0 Regions Visited (4) 800 Robots Destroyed (21) 105 Value Destroyed (420) 420 Prototype IDs (23) 460 Alien Tech Used (0) 0 Bonus (431) 431 TOTAL SCORE: 2216 Bonus ------- Follower Combat Kills 131 Aligned with FarCom 300 Cogmind --------- Core Integrity 0/250 Matter 280/300 Energy 224/250 System Corruption 7% Temperature Cool (2) Movement Walking (120) Location -9/Mines Parts ------- > --- POWER (1) -------- Ion Engine > --- PROPULSION (2) --- Aluminum Leg Aluminum Leg > --- UTILITY (2) ------ Medium Storage Unit Seismic Detector > --- WEAPON (2) ------- Light Assault Rifle > --- INVENTORY (10) --- Ion Engine Light Ion Engine Improved Heat Sink Sensor Drone Bay Mining Laser Peak State ------------ > --- POWER ------------ Ion Engine > --- PROPULSION ------- Aluminum Leg Aluminum Leg > --- UTILITY ---------- Medium Storage Unit Improved Terrain Scanner > --- WEAPON ----------- EM Pulse Gun Light Assault Rifle > --- INVENTORY -------- Ion Engine Light Ion Engine Aluminum Leg Improved Heat Sink Seismic Detector Sensor Drone Bay Beam Cannon Mining Laser [Rating: 10] Favorites ----------- Power Ion Engine Engine Ion Engine Propulsion Aluminum Leg Leg Aluminum Leg Utility Medium Storage Unit Device Improved Terrain Scanner Storage Medium Storage Unit Weapon Light Assault Rifle Energy Gun EM Pulse Gun Energy Cannon Beam Cannon Ballistic Gun Light Assault Rifle Build | -11 -10 -10 -10 -9 ------- Run | Jun Mat Min Exi Min Slots Evolved . | . . . . . Power . | . . . . . Propulsion . | . . . . . Utility . | . . . . . Weapon . | . . . . . Parts Attached 15 | 7 1 1 . 6 Power 3 | 1 . . . 2 Engine 3 | 1 . . . 2 Core . | . . . . . Reactor . | . . . . . Propulsion 5 | 2 . . . 3 Treads . | . . . . . Leg 5 | 2 . . . 3 Wheel . | . . . . . Hover . | . . . . . Flight . | . . . . . Utility 4 | 2 1 . . 1 Device 2 | 1 . . . 1 Storage 2 | 1 1 . . . Processor . | . . . . . Hackware . | . . . . . Protection . | . . . . . Artifact . | . . . . . Weapon 3 | 2 . 1 . . Energy Gun 1 | 1 . . . . Energy Cannon 1 | . . 1 . . Ballistic Gun 1 | 1 . . . . Ballistic Cannon . | . . . . . Launcher . | . . . . . Special Weapon . | . . . . . Impact Weapon . | . . . . . Slashing Weapon . | . . . . . Piercing Weapon . | . . . . . Special Melee Weapon . | . . . . . Unidentified Prototypes 1 | . . . 1 . Parts Lost 8 | . . 3 . 5 Power 2 | . . . . 2 Propulsion 3 | . . 1 . 2 Utility 1 | . . 1 . . Weapon 2 | . . 1 . 1 Highest Loss Streak 3 | . . 3 . 3 To Critical Strikes . | . . . . . Average Slot Usage (%) 81 | . 100 94 71 75 Engine 13 | . 14 14 14 12 Leg 19 | . 28 25 14 20 Device 5 | . 14 11 . 8 Storage 14 | . 14 14 14 14 Energy Gun 4 | . 14 10 . . Energy Cannon 8 | . . 3 14 5 Ballistic Gun 14 | . 14 14 14 14 Naked Turns . | . . . . . Heaviest Build 19 | 14 19 19 19 19 Greatest Support 20 | 20 20 20 10 20 Greatest Overweight (x) 3 | 3 . 1 1 1 Average Overweight (x) . | . . . 1 . Largest Inventory Capacity 10 | 8 10 10 10 10 Average Capacity 9 | 7 9 10 10 10 Most Carried 10 | 3 5 10 10 10 Average Carried 7 | 1 3 6 10 8 Final Capacity 10 | 8 10 10 10 10 Final Carried 10 | 3 5 10 10 5 Class Distribution -------------------- 100% | Mutant Dominant Class ---------------- Mutant | -10/Materials Mutant | -10/Mines Mutant | -10/Exiles Mutant | -9/Mines Resources | -11 -10 -10 -10 -9 ----------- Run | Jun Mat Min Exi Min Matter Collected 373 | 287 19 14 . 53 Remotely . | . . . . . Salvage Created 689 | 210 117 211 . 151 Parts 47 | 23 10 9 . 5 Haulers Intercepted . | . . . . . Recyclers Shooed . | . . . . . Parts Field Recycled . | . . . . . Retrieved Matter . | . . . . . Parts Self-Destructed . | . . . . . Prevented . | . . . . . Kills | -11 -10 -10 -10 -9 ------- Run | Jun Mat Min Exi Min Combat Hostiles Destroyed 12 | . 4 4 . 4 Guns 9 | . 4 3 . 2 Cannons 2 | . . 1 . 1 Classes Destroyed 7 | 3 2 1 . 1 Worker 2 | 2 . . . . Tunneler 5 | 5 . . . . Recycler 1 | 1 . . . . Mechanic 1 | . . 1 . . Swarmer 3 | . 2 . . 1 Grunt 8 | . 2 4 . 2 Brawler 1 | . . . . 1 Best Kill Streak 2 | 2 2 2 . 2 Combat Bots Only 2 | . 2 2 . 2 Max Kills in Single Turn 1 | 1 1 1 . 1 Gunslinging . | . . . . . Exploded . | . . . . . Melee . | . . . . . Uniques/NPCs Destroyed . | . . . . . Combat | -11 -10 -10 -10 -9 -------- Run | Jun Mat Min Exi Min Damage Taken 1013 | 26 118 272 . 597 Core 266 | 13 27 75 . 151 Absorbed by Shields . | . . . . . Core Remaining (%) 94 | 94 . . . . Volleys Fired 59 | 18 8 15 . 18 Largest 2 | 2 2 2 . 2 Hottest 80 | 60 60 80 . 80 Shots Fired 111 | 36 16 29 . 30 Gun 91 | 36 16 21 . 18 Cannon 20 | . . 8 . 12 Launcher . | . . . . . Special . | . . . . . Kinetic 58 | 18 8 14 . 18 Thermal 20 | . . 8 . 12 Explosive . | . . . . . Electromagnetic 33 | 18 8 7 . . Robot Hit Streak 16 | 10 5 7 . 16 Robot Miss Streak 5 | 4 5 2 . 2 Penetration Max . | . . . . . Secondary Targets . | . . . . . Shots Hit Robots 71 | 20 8 19 . 24 Core Hits 35 | 13 5 10 . 7 Critical Kills . | . . . . . Critical Parts Destroyed . | . . . . . Critical Strikes 1 | 1 . . . . Corrupt 1 | 1 . . . . Melee Attacks . | . . . . . Impact . | . . . . . Slashing . | . . . . . Piercing . | . . . . . Sneak Attacks . | . . . . . Combat Hostiles . | . . . . . Follow-up Attacks . | . . . . . Damage Inflicted 860 | 243 86 226 . 305 Guns 568 | 215 86 136 . 131 Cannons 261 | . . 87 . 174 Explosions 28 | 28 . . . . Melee . | . . . . . Ramming 3 | . . 3 . . Kinetic 327 | 60 48 88 . 131 Thermal 289 | 28 . 87 . 174 Explosive . | . . . . . Electromagnetic 241 | 155 38 48 . . Impact . | . . . . . Slashing . | . . . . . Piercing . | . . . . . Highest Corruption 7 | . . . . 7 Average Corruption 6 | . . . . 6 Corruption Purged . | . . . . . Corruption Blocked . | . . . . . Effects 3 | . . . . 3 Message Errors 1 | . . . . 1 Matter Fused 1 | . . . . 1 Data Loss (minor) 1 | . . . . 1 Overload Shots . | . . . . . Overflow Damage . | . . . . . Projectiles . | . . . . . Explosions . | . . . . . Melee . | . . . . . Knockbacks . | . . . . . Impact . | . . . . . Kinetic . | . . . . . Secondary . | . . . . . Self-Inflicted Damage 26 | 26 . . . . Shots 1 | 1 . . . . Rammed . | . . . . . Targets Rammed 1 | . . 1 . . Kicked 1 | . . 1 . . Crushed . | . . . . . Highest Temperature 296 | 52 52 285 . 296 Average Temperature 87 | 19 25 93 . 173 Received Heat Transfer 267 | . 12 189 . 66 Effects 1 | . . 1 . . Interference 1 | . . 1 . . Siege Activations . | . . . . . Robots Corrupted . | . . . . . Combat Hostiles . | . . . . . Parts Fried . | . . . . . Impact Corruptions . | . . . . . Robots Melted 1 | . . . . 1 Combat Hostiles 1 | . . . . 1 Parts Melted 2 | . . 1 . 1 Heat Transferred 555 | . . 185 . 370 Parts Sabotaged . | . . . . . Parts Stolen . | . . . . . Parts Stripped . | . . . . . Power Chain Reactions 1 | 1 . . . . Missiles Intercepted . | . . . . . Alert | -11 -10 -10 -10 -9 ------- Run | Jun Mat Min Exi Min Peak Influence 219 | 40 116 219 . 60 Initial 45 | . 26 45 . . Average 72 | 21 61 96 . 33 Maximum Alert Level 1 | . . 1 . . Low Security (%) 86 | 100 100 78 . 100 Level 1 13 | . . 21 . . Level 2 . | . . . . . Level 3 . | . . . . . Level 4 . | . . . . . Level 5 . | . . . . . High Security . | . . . . . Max Security . | . . . . . Squads Dispatched 2 | . 1 1 . . Investigation . | . . . . . Extermination . | . . . . . Reinforcement 1 | . 1 . . . Assault 1 | . . 1 . . Garrison . | . . . . . Intercept . | . . . . . Searches Triggered . | . . . . . Construction Impeded . | . . . . . Haulers Reinforced . | . . . . . Active Scanning Responses . | . . . . . Cargo Convoy Interrupts . | . . . . . Stealth | -11 -10 -10 -10 -9 --------- Run | Jun Mat Min Exi Min Distress Signals . | . . . . . Communications Jammed . | . . . . . Distress Signals . | . . . . . Times Spotted 24 | . 6 10 . 8 Peak Tracking Total 5 | . 3 5 . 5 Tactical Retreats . | . . . . . Traps | -11 -10 -10 -10 -9 ------- Run | Jun Mat Min Exi Min Traps Triggered . | . . . . . Indirectly . | . . . . . Trap Hack Attempts . | . . . . . Triggered . | . . . . . Disarmed . | . . . . . Reprogrammed . | . . . . . Reused . | . . . . . Traps Extracted . | . . . . . Installed . | . . . . . Triggered . | . . . . . Machines | -11 -10 -10 -10 -9 ---------- Run | Jun Mat Min Exi Min Machines Disabled . | . . . . . Max in Single Turn . | . . . . . Machines Repaired . | . . . . . Machines Sabotaged . | . . . . . Overloaded Fab Kills . | . . . . . Hacking | -11 -10 -10 -10 -9 --------- Run | Jun Mat Min Exi Min Machines Accessed 8 | . 2 1 5 . Terminals 2 | . 2 . . . Fabricators . | . . . . . Repair Stations . | . . . . . Recycling Units . | . . . . . Scanalyzers . | . . . . . Garrison Access . | . . . . . Total Hacks 56 | . 5 1 50 . Successful 52 | . 1 1 50 . Failed 4 | . 4 . . . Catastrophic . | . . . . . Database Lockouts . | . . . . . Manual 1 | . . . 1 . Terminals 5 | . 5 . . . Fabricators . | . . . . . Repair Stations . | . . . . . Recycling Units . | . . . . . Scanalyzers . | . . . . . Garrison Access . | . . . . . Terminal Hacks 52 | . 1 1 50 . Record 49 | . . . 49 . Open Door 1 | . . 1 . . Locate Traps 1 | . 1 . . . EX-Prototype ID Bank 1 | . . . 1 . Fabricator Hacks . | . . . . . Repair Station Hacks . | . . . . . Recycling Unit Hacks . | . . . . . Scanalyzer . | . . . . . Garrison Access Hacks . | . . . . . Unauthorized Hacks . | . . . . . Terminals . | . . . . . Fabricators . | . . . . . Repair Stations . | . . . . . Recycling Units . | . . . . . Scanalyzers . | . . . . . Garrison Access . | . . . . . Data Cores Recovered . | . . . . . Used . | . . . . . Hacking Detections 1 | . 1 . . . Full Trace Events . | . . . . . Feedback Events . | . . . . . Feedback Blocked . | . . . . . Robot Schematics Acquired . | . . . . . Robots Built . | . . . . . Authchips . | . . . . . Time . | . . . . . Total Robot Build Rating . | . . . . . Part Schematics Acquired . | . . . . . Parts Built . | . . . . . Authchips . | . . . . . Time . | . . . . . Total Part Build Rating . | . . . . . Parts Repaired . | . . . . . Time . | . . . . . Parts Recycled . | . . . . . Recycled Matter . | . . . . . Retrieved Matter . | . . . . . Retrieved Components . | . . . . . Parts Scanalyzed . | . . . . . Part Schematics Acquired . | . . . . . Parts Damaged . | . . . . . Bothacking | -11 -10 -10 -10 -9 ------------ Run | Jun Mat Min Exi Min Used RIF Installer . | . . . . . Robots Hacked . | . . . . . Non-combat . | . . . . . Combat . | . . . . . Robot Hacks Applied . | . . . . . Relay Couplers Released . | . . . . . Fabnet Peak Effective % . | . . . . . Robots Rewired . | . . . . . Allies Hacked . | . . . . . Hacks Repelled . | . . . . . Allies | -11 -10 -10 -10 -9 -------- Run | Jun Mat Min Exi Min Total Allies 1 | . . 1 . . Largest Group 1 | . . 1 . . Highest-Rated Group 31 | . . 31 . . Highest-Rated Ally 31 | . . 31 . . Total Orders . | . . . . . Ally Attacks 25 | . . 25 . . Total Damage 460 | . . 460 . . Kills 7 | . . 7 . . Allies Corrupted . | . . . . . Allies Melted . | . . . . . Intel | -11 -10 -10 -10 -9 ------- Run | Jun Mat Min Exi Min Robot Analysis Total . | . . . . . Derelict Logs Recovered 3 | . . 3 . . Drone Launches . | . . . . . Drone Recoveries . | . . . . . Exploration | -11 -10 -10 -10 -9 ------------- Run | Jun Mat Min Exi Min Turns Passed 2588 | 218 160 859 1161 190 Spaces Moved 1439 | 127 100 503 612 97 Core 11 | 11 . . . . Treads . | . . . . . Legs 1428 | 116 100 503 612 97 Wheels . | . . . . . Hover . | . . . . . Flight . | . . . . . Fastest Speed 50 | 50 120 120 190 120 Average Speed 155 | 119 120 132 190 140 Slowest Speed 200 | 200 120 190 190 190 Overloaded Moves . | . . . . . Propulsion Burnouts . | . . . . . Robots Hopped . | . . . . . Cave-ins Triggered . | . . . . . Time Travels 1 | . . . 1 . Exploration Rate (%) 43 | 4 24 64 93 30 Regions Visited 4 Branch Regions 3 Pre-discovered Areas 2 | . . 1 1 . Known Exits Taken 1 | . . . 1 . Unknown Exits Taken 3 | 1 1 1 . . Scrap Searched 1 | . . 1 . . Spaces Dug . | . . . . . Terrain Destroyed 2 | 2 . . . . Melee . | . . . . . Projectile . | . . . . . AOE 2 | 2 . . . . Terrain Rammed . | . . . . . Walls Destroyed . | . . . . . Machines Disabled . | . . . . . Actions | -11 -10 -10 -10 -9 --------- Run | Jun Mat Min Exi Min Total 1693 | 161 125 671 611 125 Wait 162 | . 13 146 . 3 Move 1435 | 126 99 502 611 97 Hop . | . . . . . Pick Up 20 | 10 3 6 . 1 Fast Attach . | . . . . . Attach 14 | 7 . 1 . 6 Detach . | . . . . . Swap 1 | . 1 . . . Drop 1 | . 1 . . . Fire 59 | 18 8 15 . 18 Melee . | . . . . . Ram . | . . . . . Kick 1 | . . 1 . . Crush . | . . . . . Escape Stasis . | . . . . . Rewire . | . . . . . Trap . | . . . . . Miscellaneous . | . . . . . Route ------- -11/Junkyard -10/Materials -10/Mines (discovered 2 exits: [*Mat] / *Exi) -10/Exiles (discovered 2 exits: *Min x2) -9/Mines History --------- Turn | Location | Event 19 | -11/Junkyard | Discovered new exit (range 15) 219 | -11/Junkyard | Entered Materials 307 | -10/Materials | Build established: Mutant 320 | -10/Materials | Discovered new exit (range 10) 379 | -10/Materials | Entered Mines 380 | -10/Mines | Learned location of Storage (-8) 398 | -10/Mines | Met a Derelict testing a Signal Generator 409 | -10/Mines | Met a Derelict bent on vengeance 974 | -10/Mines | Learned location of 1 exit from Materials 981 | -10/Mines | Found the Drone Emporium 988 | -10/Mines | Found Prototype Device 1029 | -10/Mines | Learned Materials garrison access intel 1037 | -10/Mines | Discovered new exit (range 9) 1095 | -10/Mines | Lost 3 parts (1n1u1w) 1229 | -10/Mines | Deemed a non-threat by the Exiles lab entrance 1231 | -10/Mines | Discovered new exit (range 5) 1238 | -10/Mines | Entered Exiles 1239 | -10/Exiles | Identified exit to Mines 1297 | -10/Exiles | Met 8R-AWN 1326 | -10/Exiles | Met EX-HEX 1406 | -10/Exiles | Met EX-DEC 1419 | -10/Exiles | Learned location of Zion (-6) 1665 | -10/Exiles | Visited The Gauntlet 1989 | -10/Exiles | Met EX-BIN 2012 | -10/Exiles | Aligned with FarCom system 2014 | -10/Exiles | Given EX-Vault access code 2095 | -10/Exiles | Opened EX-Vault 2103 | -10/Exiles | Found Prototype Device 2103 | -10/Exiles | Identified Chronowheel 2103 | -10/Exiles | Activated Chronowheel 2103 | -10/Exiles | Spacetime reconverged on an earlier point 2190 | -10/Exiles | Warned to stay clear of 0b10 Research branches 2399 | -10/Exiles | Entered Mines 2400 | -9/Mines | Assembled infested the area 2434 | -9/Mines | Core integrity fell below 50% 2562 | -9/Mines | Core integrity fell below 20% 2589 | -9/Mines | Destroyed by as-94954 with Assembled Heavy Rifle Last Messages --------------- 02463_ Knocked back. 02465_ K-01 Serf collects debris. 02470_ B-36 Bruiser heat spikes uncontrollably. 02470_ B-36 Bruiser overheating. 02471_ B-36 Bruiser heat damages core (-4). 02471_ Rnf. Ion Engine melted. 02471_ K-01 Serf collects debris. 02477_ Acquired 45 matter. 02479_ Acquired Ion Engine. 02480_ K-01 Serf collects debris. 02523_ System corrupted: Matter fused (-5). 02523_ K-01 Serf collects debris. 02547_ Ion Engine destroyed. 02562_ Aluminum Leg destroyed. 02568_ S-10 Pest destroyed. 02570_ Acquired 8 matter. 02571_ S-10 Pest destroyed. 02573_ System corrupted: Component data lost. 02573_ Laser Drill disabled. 02585_ Aluminum Leg destroyed. Map ----- +----------------------------------------------------+ | ??????????## #???# #?????? | | ??????????# ##???# ##????? | | ??????????# ##??## ##???? | | ??????????# ##### #???? | | ??????????# #???? | | ??????????## ##??? | | ???????????## ### #### | | ????????????## =" ### # | | ?????????????# %%" #?### | | ?????????????# " ##???## | | ????? #??????# ## #?????### | | ??? ??????###### #???????## | | ??? #??????????# #?????????## | | ??? #?????????# #??????????? | | ??? ?????????# #??????????? | | ???# ?????????# ######?????? | | ???# ?????????# #?????? | | ???# ?????????###### #?????? | | ???# ??????????????# #??###? | | ???# ??????????????# ### ## | | ???? ????####??????# # | | ????? #???## ####???# | | ?????# #??## =%[ ##### ## | | ????## #?## "" %[ ## ### | | ???## ### """* ###??# | | ???# @ aa """=% #????? | | ???# #####????? | | ???## ########?????????? | | ????## ##????????????????? | | ?????## #?????????????????? | | ??????# ??????????????????? | | ??????# #?????????????????? | | ?????? ##??????????????????? | | ????? ##???????????????????? | | ???? ##????????????????????? | | ???? #?????????????????????? | | ??? #?????????????????????? | | ?? ?????????????????????? | | ?? ?????????????????????? | | ??? ?????????????????????? | | ???? ?????????????????????? | | ?????? ??????????????????????? | | ???????????????????????????????? | | ???????????????????????????????? | | ???????????????????????????????? | | ???????????????????????????????? | | ???????????????????????????????? | | ???????????????????????????????? | | ???????????????????????????????? | | ???????????????????????????????? | +----------------------------------------------------+ Best States ------------- Heat Dissipation 25 Energy Generation 10 Energy Capacity 250 Matter Stores 300 Matter Capacity 300 Sight Range 16 Terrain Scan Range 16 Terrain Scan Density 10 Evasion (%) 55 Item Schematics ----------------- None Robot Schematics ------------------ None Fabricated ------------ Nothing Alien Tech Used ----------------- None Achievements -------------- None Challenges ------------ None Game ------ Seed LatentGrenadeShield Manual? 0 Play Time 00:28:56 Cumulative 31.0 hours Start 2023.09.07 @ 19:42:26 End 2023.09.07 @ 20:57:39 Sessions 1 Manual Loads 0 Difficulty Rogue Special Mode None Game No. 67 Rogue 67 Adventurer 0 Explorer 0 Win Type - Total 0 Types 0/0/0/0/0/0/0/0/0 Lore% 25 Gallery% 26 Achievement% 23 Wizard Run 0 Options --------- ASCII 0 Keyboard 0 Movement Mouse Keybinds 0 Fullscreen 1 Font 18/SmallcapsGlow Map View 76x50 Tactical HUD 1 Map Filters NONE Filters NONE Steam 1 RUN: 0c473723-cb08-4edc-a9a8-46c01ebe173f